bitfinex/quotes_ETHUSD_20250711
["timestamp","ask_amount","ask_price","bid_price","bid_amount"]
[1752223944002,6.03,2997.7,2997.6,15.519]
[1752223944168,6.03,2997.7,2997.6,15.85678906]
[1752223944367,6.03,2997.7,2997.6,10.0]
[1752223944569,6.03,2997.7,2997.6,15.516]
[1752223944905,7.14,2997.7,2997.6,15.516]
[1752223945071,7.604,2997.7,2997.6,15.516]
[1752223945273,7.604,2997.7,2997.6,15.515]
[1752223946606,7.14,2997.7,2997.6,15.515]
[1752223946903,7.14,2997.7,2997.6,15.85278906]
[1752223947273,8.25,2997.7,2997.6,15.515]
[1752223947491,8.25,2997.7,2997.6,15.513]
[1752223949268,8.25,2997.7,2997.6,15.511]
[1752223949269,8.714,2997.7,2997.6,15.511]
[1752223949691,9.824,2997.7,2997.6,10.0]
[1752223949903,9.824,2997.7,2997.6,15.511]
[1752223950108,9.36,2997.7,2997.6,15.511]
[1752223950508,9.36,2997.7,2997.6,15.6774]
[1752223952205,10.47,2997.7,2997.6,15.6774]
[1752223952373,10.47,2997.7,2997.6,17.2114]
[1752223954673,11.58,2997.7,2997.6,17.2114]
[1752223955614,11.58,2997.7,2997.6,11.7004]
[1752223955816,11.58,2997.7,2997.6,17.2044]
[1752223956027,13.6658,2997.7,2997.6,10.1664]
[1752223956190,13.6658,2997.7,2997.6,15.503]
[1752223957231,14.7758,2997.7,2997.6,10.0]
[1752223957425,14.7758,2997.7,2997.6,15.503]
[1752223959299,14.7758,2997.7,2997.6,10.0]
[1752223959510,15.8858,2997.7,2997.6,15.5]
[1752223959920,17.47438,2997.7,2997.6,10.0]
[1752223960454,17.47438,2997.7,2997.6,15.499]
[1752223960619,17.47438,2997.7,2997.6,5.499]
[1752223960941,0.1664,2997.6,2997.5,17.994]
[1752223961139,5.0864,2997.6,2997.5,23.492]
[1752223961316,5.5504,2997.6,2997.5,23.492]
[1752223961834,6.6604,2997.6,2997.5,17.994]
[1752223962035,6.6604,2997.6,2997.5,23.492]
[1752223962251,8.535478,2997.6,2997.5,23.491]
[1752223962836,6.6604,2997.6,2997.5,23.491]
[1752223963572,6.494,2997.6,2997.5,23.491]
[1752223963921,6.03,2997.6,2997.5,23.491]
[1752223964222,6.03,2997.6,2997.5,24.9946]
[1752223964428,6.74023536,2997.6,2997.5,25.161]
[1752223966686,6.34023536,2997.6,2997.5,25.161]
[1752223966885,7.45023536,2997.6,2997.5,25.161]
[1752223967979,7.45023536,2997.6,2997.5,23.6574]
[1752223968789,7.45023536,2997.6,2997.5,18.1604]
[1752223969086,7.91423536,2997.6,2997.5,23.6504]
[1752223969284,9.02423536,2997.6,2997.5,23.6504]
[1752223969475,9.02423536,2997.6,2997.5,18.1604]
[1752223969681,9.02423536,2997.6,2997.5,23.484]
[1752223970170,9.02423536,2997.6,2997.5,17.994]
[1752223970374,9.02423536,2997.6,2997.5,23.483]
[1752223970980,8.56023536,2997.6,2997.5,23.483]
[1752223971374,9.02423536,2997.6,2997.5,23.483]
[1752223971750,10.13423536,2997.6,2997.5,23.483]
[1752223971981,9.67023536,2997.6,2997.5,23.483]
[1752223972250,9.67023536,2997.6,2997.5,23.87927261]
[1752223972684,8.11296971,2997.6,2997.5,25.51797261]
[1752223972863,8.11296971,2997.6,2997.5,25.68437261]
[1752223974290,9.22296971,2997.6,2997.5,25.68437261]
[1752223974455,8.8232794,2997.6,2997.5,25.68437261]
[1752223977162,9.9332794,2997.6,2997.5,20.19537261]
[1752223977363,9.9332794,2997.6,2997.5,25.67637261]
[1752223977570,9.9332794,2997.6,2997.5,20.19537261]
[1752223977796,9.9332794,2997.6,2997.5,25.67637261]
[1752223978355,9.9332794,2997.6,2997.5,20.19537261]
[1752223978692,9.9332794,2997.6,2997.5,25.67437261]
[1752223978890,9.9332794,2997.6,2997.5,20.19537261]
[1752223979092,10.3985794,2997.6,2997.5,23.6384]
[1752223979591,11.5085794,2997.6,2997.5,23.6384]
[1752223979805,11.5085794,2997.6,2997.5,18.1604]
[1752223979988,11.5085794,2997.6,2997.5,8.1604]
[1752223980191,11.5085794,2997.6,2997.5,23.471]
[1752223980397,11.5085794,2997.6,2997.5,13.471]
[1752223980575,10.75076298,2997.6,2997.5,13.471]
[1752223980900,10.75076298,2997.6,2997.5,23.471]
[1752223981973,11.39546298,2997.6,2997.5,23.471]
[1752223982308,10.59604421,2997.6,2997.5,24.03367261]
[1752223983799,10.59604421,2997.6,2997.5,18.55667261]
[1752223984092,10.59604421,2997.6,2997.5,18.1604]
[1752223984296,9.29604421,2997.6,2997.5,23.6334]
[1752223984495,10.0063268,2997.6,2997.5,23.6334]
[1752223986919,11.1163268,2997.6,2997.5,23.6334]
[1752223987381,11.1163268,2997.6,2997.5,18.1604]
[1752223987581,11.1163268,2997.6,2997.5,23.6314]
[1752223988502,11.1163268,2997.6,2997.5,18.1604]
[1752223988680,11.1163268,2997.6,2997.5,23.6294]
[1752223989017,11.1173268,2997.6,2997.5,23.6294]
[1752223989387,12.2273268,2997.6,2997.5,23.6294]
[1752223989887,12.6926268,2997.6,2997.5,23.462]
[1752223990089,13.73913568,2997.6,2997.5,23.462]
[1752223990310,12.6926268,2997.6,2997.5,23.462]
[1752223990479,12.2273268,2997.6,2997.5,23.85827261]
[1752223991395,12.2273268,2997.6,2997.5,24.02467261]
[1752223991589,11.42790371,2997.6,2997.5,24.02467261]
[1752223991914,12.53790371,2997.6,2997.5,23.6284]
[1752223992283,12.53790371,2997.6,2997.5,18.1604]
[1752223992484,12.53790371,2997.6,2997.5,23.6244]
[1752223992925,13.00320371,2997.6,2997.5,23.6244]
[1752223993125,13.00320371,2997.6,2997.5,18.1604]
[1752223993494,13.00320371,2997.6,2997.5,23.457]
[1752223994435,13.71345788,2997.6,2997.5,23.457]
[1752223995728,15.25885788,2997.6,2997.5,23.455]
[1752223996108,13.71345788,2997.6,2997.5,23.85027261]
[1752223996938,1.508,2997.5,2996.8,0.002]
[1752223997097,1.508,2997.5,2996.9,7.994]
[1752223997098,0.4653,2997.5,2996.9,7.994]
[1752223997427,1.5543,2997.4,2996.9,7.994]
[1752223997648,1.52604421,2997.3,2996.9,7.994]
[1752223997849,1.5543,2997.2,2996.9,7.994]
[1752223998151,1.99134421,2997.1,2997.0,10.917]
[1752223998498,1.99134421,2997.1,2997.0,20.917]
[1752223999300,3.45590863,2997.1,2997.0,20.917]
[1752223999618,3.45590863,2997.1,2997.0,28.912]
[1752223999820,3.10134421,2997.1,2997.0,28.912]
[1752224001415,2.63604421,2997.1,2997.0,28.912]
[1752224001621,4.21134421,2997.1,2997.0,28.912]
[1752224002576,5.77714421,2997.1,2997.0,28.912]
[1752224003543,4.21134421,2997.1,2997.0,28.912]
[1752224004057,3.74604421,2997.1,2997.0,28.912]
[1752224004264,4.85604421,2997.1,2997.0,28.912]
[1752224004459,4.45622264,2997.1,2997.0,28.912]
[1752224004649,4.05622264,2997.1,2997.0,28.912]
[1752224006631,4.50962264,2997.1,2997.0,28.912]
[1752224006926,5.61962264,2997.1,2997.0,28.912]
[1752224007131,7.20162264,2997.1,2997.0,28.912]
[1752224008275,7.9384249,2997.1,2997.0,28.892]
[1752224008767,7.20162264,2997.1,2997.0,28.892]
[1752224008930,5.16622264,2997.1,2997.0,28.892]
[1752224009332,6.27622264,2997.1,2997.0,28.892]
[1752224010763,6.27622264,2997.1,2997.0,29.0584]
[1752224012070,7.38622264,2997.1,2997.0,29.0584]
[1752224014489,8.09642177,2997.1,2997.0,29.0584]
[1752224016509,8.09642177,2997.1,2997.0,30.697]
[1752224017414,9.20642177,2997.1,2997.0,30.697]
[1752224019785,10.31642177,2997.1,2997.0,30.697]
[1752224020323,9.51685982,2997.1,2997.0,31.03757573]
[1752224021099,8.75902414,2997.1,2997.0,31.03757573]
[1752224021785,8.75902414,2997.1,2997.0,30.697]
[1752224022180,9.86902414,2997.1,2997.0,30.697]
[1752224023726,9.86902414,2997.1,2997.0,22.702]
[1752224024405,9.46928349,2997.1,2997.0,30.697]
[1752224024589,10.57928349,2997.1,2997.0,22.702]
[1752224025195,10.57928349,2997.1,2997.0,30.697]
[1752224026254,10.57928349,2997.1,2997.0,33.245]
[1752224026557,9.49668994,2997.1,2997.0,36.91557573]
[1752224027054,10.49668994,2997.1,2997.0,36.91557573]
[1752224027367,10.49668994,2997.1,2997.0,34.91757573]
[1752224027530,10.49668994,2997.1,2997.0,34.577]
[1752224028131,10.49668994,2997.1,2997.0,34.027]
[1752224028462,9.69724293,2997.1,2997.0,30.697]
[1752224028825,9.69724293,2997.1,2997.0,25.227]
[1752224029359,10.80724293,2997.1,2997.0,25.227]
[1752224029542,10.80724293,2997.1,2997.0,19.8]
[1752224029745,10.80724293,2997.1,2997.0,25.226]
[1752224030733,10.04944656,2997.1,2997.0,25.226]
[1752224031879,11.15944656,2997.1,2997.0,25.226]
[1752224032172,11.15944656,2997.1,2997.0,19.8]
[1752224032369,11.15944656,2997.1,2997.0,25.225]
[1752224032855,11.15944656,2997.1,2997.0,18.1614]
[1752224033035,11.15944656,2997.1,2997.0,23.5844]
[1752224033230,11.15944656,2997.1,2997.0,23.5864]
[1752224033435,11.16044656,2997.1,2997.0,23.5864]
[1752224034244,12.27044656,2997.1,2997.0,23.5864]
[1752224034445,11.87073014,2997.1,2997.0,23.5864]
[1752224035055,11.87073014,2997.1,2997.0,18.1634]
[1752224035262,11.87073014,2997.1,2997.0,23.5844]
[1752224035873,11.87073014,2997.1,2997.0,18.1634]
[1752224036173,11.0712809,2997.1,2997.0,23.5834]
[1752224036551,12.1812809,2997.1,2997.0,23.5834]
[1752224037376,12.1812809,2997.1,2997.0,13.414]
[1752224037679,12.1812809,2997.1,2997.0,23.81165906]
[1752224038250,12.1812809,2997.1,2997.0,18.39365906]
[1752224038458,12.1812809,2997.1,2997.0,23.81165906]
[1752224039076,13.2912809,2997.1,2997.0,23.81165906]
[1752224042004,14.4012809,2997.1,2997.0,23.81165906]
[1752224043006,14.8500809,2997.1,2997.0,17.996]
[1752224043177,14.8500809,2997.1,2997.0,23.41]
[1752224043513,14.8500809,2997.1,2997.0,23.409]
[1752224044365,15.9600809,2997.1,2997.0,23.409]
[1752224045593,15.5112809,2997.1,2997.0,23.80665906]
[1752224046678,16.6212809,2997.1,2997.0,23.80665906]
[1752224047226,16.6212809,2997.1,2997.0,23.97305906]
[1752224048022,16.6212809,2997.1,2997.0,23.5754]
[1752224049502,17.7312809,2997.1,2997.0,23.5754]
[1752224049816,17.7312809,2997.1,2997.0,23.7754]
[1752224050116,17.7312809,2997.1,2997.0,24.17305906]
[1752224051392,17.7312809,2997.1,2997.0,24.72305906]
[1752224051612,17.7312809,2997.1,2997.0,26.32495906]
[1752224051798,18.8412809,2997.1,2997.0,26.32495906]
[1752224052594,18.8412809,2997.1,2997.0,19.31005906]
[1752224052916,18.8412809,2997.1,2997.0,24.71505906]
[1752224053514,19.2900809,2997.1,2997.0,18.3624]
[1752224053890,19.2900809,2997.1,2997.0,23.7644]
[1752224054090,19.2900809,2997.1,2997.0,10.3684]
[1752224054293,20.4000809,2997.1,2997.0,23.7644]
[1752224054600,20.4000809,2997.1,2997.0,10.3684]
[1752224054806,20.4000809,2997.1,2997.0,18.3624]
[1752224055009,20.4000809,2997.1,2997.0,23.7644]
[1752224055215,20.4000809,2997.1,2997.0,0.3684]
[1752224055420,22.60122899,2997.1,2997.0,13.7634]
[1752224055608,22.60122899,2997.1,2997.0,10.3684]
[1752224056008,22.60122899,2997.1,2997.0,23.7634]
[1752224056227,20.4000809,2997.1,2997.0,23.7634]
[1752224056413,20.74756415,2997.1,2997.0,0.3684]
[1752224056606,21.85756415,2997.1,2997.0,0.50962827]
[1752224056922,21.85756415,2997.1,2997.0,10.50962827]
[1752224057081,24.05996057,2997.1,2997.0,10.50962827]
[1752224057283,24.05996057,2997.1,2997.0,23.596]
[1752224057487,24.05996057,2997.1,2997.0,18.196]
[1752224057689,24.05996057,2997.1,2997.0,23.595]
[1752224058503,24.05996057,2997.1,2997.0,10.202]
[1752224058719,24.05996057,2997.1,2997.0,23.595]
[1752224059609,25.16996057,2997.1,2997.0,18.196]
[1752224059810,25.16996057,2997.1,2997.0,23.594]
[1752224060496,25.16996057,2997.1,2997.0,23.593]
[1752224060701,25.33636057,2997.1,2997.0,23.593]
[1752224062133,26.44636057,2997.1,2997.0,18.196]
[1752224062433,26.44636057,2997.1,2997.0,23.591]
[1752224062823,26.44636057,2997.1,2997.0,10.202]
[1752224063334,26.44636057,2997.1,2997.0,23.591]
[1752224063534,26.44636057,2997.1,2997.0,10.202]
[1752224063755,26.44636057,2997.1,2997.0,23.591]
[1752224063941,26.44636057,2997.1,2997.0,10.202]
[1752224064238,26.44636057,2997.1,2997.0,23.59]
[1752224064442,27.55636057,2997.1,2997.0,23.59]
[1752224064939,27.55636057,2997.1,2997.0,18.197]
[1752224065325,27.55636057,2997.1,2997.0,23.59]
[1752224067109,28.66636057,2997.1,2997.0,23.59]
[1752224067849,28.66636057,2997.1,2997.0,18.197]
[1752224068151,28.66636057,2997.1,2997.0,23.587]
[1752224068752,23.90200737,2997.1,2997.0,23.98465906]
[1752224069110,25.87950737,2997.1,2997.0,18.197]
[1752224069652,26.98950737,2997.1,2997.0,23.89306773]
[1752224070029,26.98950737,2997.1,2997.0,18.50406773]
[1752224070230,26.98950737,2997.1,2997.0,23.89206773]
[1752224070425,29.68845811,2997.1,2997.0,18.50406773]
[1752224070653,29.68845811,2997.1,2997.0,23.89206773]
[1752224070820,29.68845811,2997.1,2997.0,18.50406773]
[1752224071351,29.68845811,2997.1,2997.0,23.89206773]
[1752224072124,30.79845811,2997.1,2997.0,23.89206773]
[1752224073345,30.79845811,2997.1,2997.0,8.50406773]
[1752224073540,30.79845811,2997.1,2997.0,13.89006773]
[1752224073753,30.79845811,2997.1,2997.0,23.89006773]
[1752224074636,31.90845811,2997.1,2997.0,23.89006773]
[1752224075155,31.90845811,2997.1,2997.0,23.88806773]
[1752224076054,31.90845811,2997.1,2997.0,23.88706773]
[1752224076957,33.01845811,2997.1,2997.0,23.88706773]
[1752224077633,33.01845811,2997.1,2996.9,0.002]
[1752224077634,31.49735811,2997.1,2996.9,0.002]
[1752224077833,12.32012044,2997.0,2996.9,0.002]
[1752224078032,12.32012044,2997.0,2996.8,17.998]
[1752224078033,2.15918994,2996.9,2996.8,17.998]
[1752224078237,2.61558994,2996.9,2996.8,23.38]
[1752224078954,2.61558994,2996.9,2996.8,23.379]
[1752224079154,1.7965,2996.8,2996.7,7.996]
[1752224079342,2.22708104,2996.8,2996.7,7.996]
[1752224079543,2.22708104,2996.8,2996.5,7.996]
[1752224079544,1.7965,2996.7,2996.5,7.996]
[1752224079747,1.6301,2996.7,2996.5,7.996]
[1752224080150,1.7031,2996.5,2996.3,0.002]
[1752224080355,1.7031,2996.5,2996.4,5.382]
[1752224080564,3.09899846,2996.5,2996.4,5.382]
[1752224080768,3.55539846,2996.5,2996.4,5.382]
[1752224081467,2.1595,2996.5,2996.4,15.382]
[1752224081771,1.12748994,2996.5,2996.4,15.77865906]
[1752224082085,2.23748994,2996.5,2996.4,15.77865906]
[1752224082248,1.78108994,2996.5,2996.4,15.77865906]
[1752224082572,1.214776,2996.5,2996.4,17.53995906]
[1752224082977,1.214776,2996.5,2996.4,17.53795906]
[1752224083554,1.214776,2996.5,2996.4,12.15995906]
[1752224083756,1.214776,2996.5,2996.4,10.56505906]
[1752224083955,1.214776,2996.5,2996.4,15.5454]
[1752224084178,1.671176,2996.5,2996.4,15.5454]
[1752224084376,2.781176,2996.5,2996.4,10.1684]
[1752224084579,2.781176,2996.5,2996.4,15.5454]
[1752224085853,2.324776,2996.5,2996.4,15.5454]
[1752224086162,2.324776,2996.5,2996.4,15.94205906]
[1752224086580,2.22,2996.5,2996.4,15.94205906]
[1752224086787,3.33,2996.5,2996.4,15.94205906]
[1752224088156,3.33,2996.5,2996.4,10.56505906]
[1752224088356,3.33,2996.5,2996.4,15.93805906]
[1752224089255,6.75,2996.5,2996.4,15.93805906]
[1752224089580,6.75,2996.5,2996.4,15.93705906]
[1752224090287,5.95029109,2996.5,2996.4,17.41025906]
[1752224091442,5.95029109,2996.5,2996.4,17.96025906]
[1752224091698,7.06029109,2996.5,2996.4,17.96025906]
[1752224092667,6.6604941,2996.5,2996.4,17.96025906]
[1752224094380,7.7704941,2996.5,2996.4,17.96025906]
[1752224094853,7.7704941,2996.5,2996.4,12.58825906]
[1752224095260,7.7704941,2996.5,2996.4,17.95525906]
[1752224096696,7.7704941,2996.5,2996.4,12.58825906]
[1752224096997,7.7704941,2996.5,2996.4,17.0066]
[1752224096998,8.8804941,2996.5,2996.4,17.0066]
[1752224097666,8.8804941,2996.5,2996.4,11.6416]
[1752224097987,8.8804941,2996.5,2996.4,17.0066]
[1752224098185,8.08085864,2996.5,2996.4,17.0066]
[1752224099365,9.19085864,2996.5,2996.4,17.0066]
[1752224099702,9.19085864,2996.5,2996.4,11.6416]
[1752224100200,9.19085864,2996.5,2996.4,11.808]
[1752224100369,9.19085864,2996.5,2996.4,17.171]
[1752224100566,9.19085864,2996.5,2996.4,11.808]
[1752224100767,9.19085864,2996.5,2996.4,17.17]
[1752224101094,9.19085864,2996.5,2996.4,11.808]
[1752224101355,9.64315864,2996.5,2996.4,10.1684]
[1752224101622,9.64315864,2996.5,2996.4,15.92605906]
[1752224101623,9.19185864,2996.5,2996.4,15.92605906]
[1752224101772,10.30185864,2996.5,2996.4,17.51165906]
[1752224102641,9.90204122,2996.5,2996.4,17.51165906]
[1752224104307,11.01204122,2996.5,2996.4,17.09]
[1752224104796,11.01204122,2996.5,2996.4,17.088]
[1752224104999,11.01204122,2996.5,2996.4,11.729]
[1752224105202,11.01204122,2996.5,2996.4,10.1684]
[1752224105506,11.01204122,2996.5,2996.4,15.5264]
[1752224106299,10.21240671,2996.5,2996.4,15.5264]
[1752224106601,10.21240671,2996.5,2996.4,17.45675906]
[1752224106782,11.32240671,2996.5,2996.4,17.45675906]
[1752224108500,11.32240671,2996.5,2996.4,18.00675906]
[1752224109283,12.43240671,2996.5,2996.4,18.00675906]
[1752224109780,12.43240671,2996.5,2996.4,18.00375906]
[1752224111813,13.54240671,2996.5,2996.4,18.00075906]
[1752224112412,12.45965933,2996.5,2996.4,18.00075906]
[1752224112708,1.07407057,2996.5,2996.4,50.33426295]
[1752224112881,0.32407057,2996.5,2996.4,48.61806295]
[1752224113181,0.32407057,2996.5,2996.4,46.09879495]
[1752224113700,0.32407057,2996.5,2996.4,47.17744895]
[1752224114199,1.43407057,2996.5,2996.4,23.12168695]
[1752224114378,0.63453405,2996.5,2996.4,17.5771]
[1752224114581,0.63453405,2996.5,2996.4,12.2271]
[1752224114781,0.63453405,2996.5,2996.4,10.1684]
[1752224115002,1.08583405,2996.5,2996.4,15.5184]
[1752224115406,1.08583405,2996.5,2996.4,10.1684]
[1752224115589,2.60923405,2996.5,2996.4,5.5174]
[1752224115923,3.86015746,2996.5,2996.4,15.5174]
[1752224116279,3.59923405,2996.5,2996.4,15.5174]
[1752224116480,4.70923405,2996.5,2996.4,5.5174]
[1752224116902,4.70923405,2996.5,2996.4,0.002]
[1752224117101,4.87563405,2996.5,2996.4,5.35]
[1752224118738,4.87563405,2996.5,2996.4,0.002]
[1752224118904,2.6249,2996.4,2996.3,0.002]
[1752224119225,3.0762,2996.4,2996.3,0.002]
[1752224119433,3.0762,2996.4,2996.3,15.348]
[1752224119609,3.0762,2996.4,2996.3,15.27315711]
[1752224119810,3.0762,2996.4,2996.3,5.346]
[1752224120016,3.71802975,2996.4,2996.3,5.346]
[1752224120209,3.71802975,2996.4,2996.1,7.997]
[1752224120432,1.6369,2996.2,2996.1,7.997]
[1752224120735,1.6369,2996.2,2996.1,13.343]
[1752224120736,2.0882,2996.2,2996.1,13.343]
[1752224121103,2.0882,2996.2,2996.1,7.997]
[1752224121323,2.0882,2996.2,2996.1,13.342]
[1752224121324,3.57000298,2996.2,2996.1,13.342]
[1752224121637,3.57000298,2996.2,2996.1,17.997]
[1752224121838,3.57000298,2996.2,2996.1,23.342]
[1752224123401,3.57000298,2996.2,2996.1,17.997]
[1752224123604,3.57000298,2996.2,2996.1,23.341]
[1752224123901,4.68000298,2996.2,2996.1,23.341]
[1752224124100,4.68000298,2996.2,2996.1,10.0]
[1752224124302,4.68000298,2996.2,2995.8,0.002]
[1752224124303,1.8033,2996.1,2995.8,7.999]
[1752224124529,1.8033,2996.1,2996.0,5.343]
[1752224124530,2.5369003,2996.1,2996.0,5.343]
[1752224124735,1.6369,2996.0,2995.8,7.999]
[1752224125040,2.0689,2996.0,2995.8,7.999]
[1752224125244,2.0689,2996.0,2995.7,0.002]
[1752224125245,1.5313,2995.8,2995.7,8.0]
[1752224125413,4.74,2995.8,2995.7,8.0]
[1752224125610,6.7033,2995.8,2995.7,8.0]
[1752224125821,6.7033,2995.8,2995.7,13.343]
[1752224126020,7.42491703,2995.8,2995.7,13.343]
[1752224126245,8.53491703,2995.8,2995.7,23.343]
[1752224127351,7.8133,2995.8,2995.7,23.343]
[1752224128203,7.8133,2995.8,2995.7,18.0]
[1752224128407,7.8133,2995.8,2995.7,23.342]
[1752224128654,8.9233,2995.8,2995.7,23.342]
[1752224129408,4.1833,2995.8,2995.7,23.342]
[1752224130020,4.1833,2995.8,2995.7,23.76365906]
[1752224130437,4.1833,2995.8,2995.7,23.342]
[1752224130850,4.1833,2995.8,2995.7,23.34]
[1752224131049,5.2933,2995.8,2995.7,23.34]
[1752224131405,3.33,2995.8,2995.7,23.76165906]
[1752224132251,3.762,2995.8,2995.7,23.76165906]
[1752224133438,3.762,2995.8,2995.7,18.0]
[1752224133643,6.86094,2995.8,2995.7,23.337]
[1752224133838,6.4681,2995.8,2995.7,23.337]
[1752224134044,4.44,2995.8,2995.7,23.337]
[1752224134243,4.44,2995.8,2995.7,23.75765906]
[1752224136049,5.55,2995.8,2995.7,23.337]
[1752224137033,5.982,2995.8,2995.7,23.337]
[1752224138569,6.66,2995.8,2995.7,23.337]
[1752224138758,6.66,2995.8,2995.7,23.75765906]
[1752224139680,6.66,2995.8,2995.7,23.334]
[1752224139977,7.092,2995.8,2995.7,23.334]
[1752224140286,6.66,2995.8,2995.7,23.333]
[1752224141042,7.77,2995.8,2995.7,23.333]
[1752224141666,7.77,2995.8,2995.7,23.75365906]
[1752224142256,7.77,2995.8,2995.7,23.92005906]
[1752224143244,8.88,2995.8,2995.7,23.92005906]
[1752224144067,8.48003539,2995.8,2995.7,23.92005906]
[1752224145107,8.48003539,2995.8,2995.7,24.39165906]
[1752224145748,9.59003539,2995.8,2995.7,24.39165906]
[1752224146152,9.59003539,2995.8,2995.7,25.97295906]
[1752224146917,8.79018891,2995.8,2995.7,25.97295906]
[1752224147366,8.79018891,2995.8,2995.7,26.52295906]
[1752224148274,9.90018891,2995.8,2995.7,26.52295906]
[1752224149393,9.90018891,2995.8,2995.7,26.51695906]
[1752224150701,11.01018891,2995.8,2995.7,26.51695906]
[1752224151514,11.01018891,2995.8,2995.7,26.51495906]
[1752224151742,11.01018891,2995.8,2995.7,29.84695906]
[1752224152122,11.01018891,2995.8,2995.7,59.30079306]
[1752224152343,11.01018891,2995.8,2995.7,56.81465006]
[1752224152525,11.01018891,2995.8,2995.7,33.51827506]
[1752224152729,11.01018891,2995.8,2995.7,33.09394906]
[1752224153054,11.01018891,2995.8,2995.7,30.18246295]
[1752224153346,12.12018891,2995.8,2995.7,53.51269195]
[1752224153932,9.86147431,2995.8,2995.7,53.51269195]
[1752224154140,8.33224557,2995.8,2995.7,60.18246295]
[1752224154344,6.07353097,2995.8,2995.7,60.18246295]
[1752224154512,2.68545907,2995.8,2995.7,62.18346295]
[1752224154714,0.75637667,2995.8,2995.7,62.18346295]
[1752224154946,2.22,2996.2,2996.1,12.0914]
[1752224155252,2.22,2996.2,2996.1,17.4124]
[1752224155446,2.22,2996.2,2996.1,17.8782]
[1752224155653,3.33,2996.2,2996.1,18.0446]
[1752224156549,3.33,2996.2,2996.1,18.0426]
[1752224157932,4.44,2996.2,2996.1,18.0426]
[1752224159752,4.44,2996.2,2996.1,18.0406]
[1752224160118,4.44,2996.2,2996.1,12.7236]
[1752224160325,4.44,2996.2,2996.1,18.46025906]
[1752224160523,5.55,2996.2,2996.1,18.46025906]
[1752224161563,5.55,2996.2,2996.1,20.46125906]
[1752224162250,5.55,2996.2,2996.1,20.46025906]
[1752224162876,5.86035316,2996.2,2996.1,20.46025906]
[1752224163421,5.86035316,2996.2,2996.1,20.45925906]
[1752224164169,5.46054029,2996.2,2996.1,20.45925906]
[1752224165145,5.46054029,2996.2,2996.1,20.0386]
[1752224165345,6.57054029,2996.2,2996.1,20.0386]
[1752224165773,6.57154029,2996.2,2996.1,20.0386]
[1752224166261,6.57154029,2996.2,2996.1,20.0366]
[1752224166464,6.57154029,2996.2,2996.1,20.0356]
[1752224166674,6.57154029,2996.2,2996.1,52.33969989]
[1752224167055,5.48882876,2996.2,2996.1,39.73701889]
[1752224167257,5.48882876,2996.2,2996.1,39.43279189]
[1752224167643,5.48882876,2996.2,2996.1,46.87133689]
[1752224167978,6.43225094,2996.2,2996.1,46.87033689]
[1752224168398,6.26567312,2996.2,2996.1,46.87033689]
[1752224168545,6.26567312,2996.2,2996.1,41.84614589]
[1752224168886,6.0990953,2996.2,2996.1,41.56681989]
[1752224169047,5.93251748,2996.2,2996.1,43.45947859]
[1752224169248,5.93251748,2996.2,2996.1,40.57972259]
[1752224169484,5.76593966,2996.2,2996.1,40.57972259]
[1752224169781,5.76593966,2996.2,2996.1,42.29972259]
[1752224169944,5.76593966,2996.2,2996.1,42.24972259]
[1752224170278,5.76593966,2996.2,2996.1,43.18572259]
[1752224170580,6.87593966,2996.2,2996.1,50.81982259]
[1752224170764,6.07644775,2996.2,2996.1,50.81982259]
[1752224171660,6.07644775,2996.2,2996.1,52.98033159]
[1752224171984,6.07644775,2996.2,2996.1,49.47433159]
[1752224172171,5.90989157,2996.2,2996.1,49.47433159]
[1752224172371,5.90989157,2996.2,2996.1,43.31001059]
[1752224172544,5.90989157,2996.2,2996.1,31.36268859]
[1752224172751,5.90989157,2996.2,2996.1,49.99704459]
[1752224172951,5.93724587,2996.2,2996.1,49.99704459]
[1752224173167,5.93724587,2996.2,2996.1,49.74704459]
[1752224173479,5.93724587,2996.2,2996.1,42.65520059]
[1752224173779,5.93724587,2996.2,2996.1,49.24129459]
[1752224174177,5.53749757,2996.2,2996.1,49.24129459]
[1752224174675,5.53749757,2996.2,2996.1,53.19704959]
[1752224175581,6.64749757,2996.2,2996.1,51.36539459]
[1752224175762,6.64749757,2996.2,2996.1,55.13139459]
[1752224176095,6.64749757,2996.2,2996.1,39.36059459]
[1752224176309,6.64749757,2996.2,2996.1,19.8419847]
[1752224176459,6.64749757,2996.2,2996.1,18.8781617]
[1752224176674,6.64749757,2996.2,2996.1,29.3439617]
[1752224176874,6.64749757,2996.2,2996.1,58.9851087]
[1752224177192,6.64749757,2996.2,2996.1,58.15441663]
[1752224177395,6.64749757,2996.2,2996.1,70.30641663]
[1752224177778,7.75749757,2996.2,2996.1,71.54871763]
[1752224178816,6.95799029,2996.2,2996.1,57.60932293]
[1752224179035,6.95799029,2996.2,2996.1,42.38860715]
[1752224179340,6.95799029,2996.2,2996.1,41.47582115]
[1752224179778,6.95799029,2996.2,2996.1,40.78982115]
[1752224179978,6.95799029,2996.2,2996.1,39.94649515]
[1752224180193,8.06799029,2996.2,2996.1,31.669323]
[1752224180413,8.06799029,2996.2,2996.1,29.453]
[1752224180982,8.06799029,2996.2,2996.1,30.003]
[1752224182239,8.06799029,2996.2,2996.1,30.42371793]
[1752224182750,9.17799029,2996.2,2996.1,30.42371793]
[1752224182929,9.17799029,2996.2,2996.1,30.42271793]
[1752224183412,9.17799029,2996.2,2996.1,65.87641793]
[1752224183851,9.17799029,2996.2,2996.1,63.97925893]
[1752224184160,8.881,2996.2,2996.1,63.97925893]
[1752224184368,8.881,2996.2,2996.1,59.33949993]
[1752224184369,8.77820857,2996.2,2996.1,59.33949993]
[1752224184515,8.77820857,2996.2,2996.1,59.79682593]
[1752224185115,7.69546644,2996.2,2996.1,59.79682593]
[1752224185516,8.80546644,2996.2,2996.1,35.87641793]
[1752224185759,8.80546644,2996.2,2996.1,65.87641793]
[1752224186269,8.80546644,2996.2,2996.1,71.58189608]
[1752224186422,8.80546644,2996.2,2996.1,68.94870508]